bitfinex/quotes_SOLUSD_20251125
["timestamp","ask_amount","ask_price","bid_price","bid_amount"]
[1764063808499,0.67,135.85,135.82,9.67473133]
[1764063808815,0.67,135.86,135.84,9.67473133]
[1764063809001,0.67,135.86,135.85,3.26]
[1764063809314,0.67,135.86,135.85,10.62105999]
[1764063811222,17.26318714,135.9,135.85,10.62105999]
[1764063811419,0.67,135.89,135.87,9.67473133]
[1764063811607,0.67,135.89,135.88,3.26]
[1764063811808,16.978864,135.89,135.88,3.26]
[1764063812217,16.978864,135.89,135.86,3.26]
[1764063812396,16.978864,135.89,135.85,3.26]
[1764063812397,0.14216157,135.87,135.85,3.26]
[1764063812812,10.34473133,135.86,135.85,3.26]
[1764063813202,0.67,135.86,135.85,3.26]
[1764063814124,17.26318714,135.88,135.85,3.26]
[1764063814310,17.26318714,135.88,135.85,10.62098126]
[1764063814311,0.67,135.87,135.85,10.62098126]
[1764063814710,0.67,135.87,135.85,20.29571259]
[1764063814910,0.67,135.88,135.85,20.29571259]
[1764063816816,0.67,135.88,135.85,3.26]
[1764063817019,0.67,135.88,135.85,12.93473133]
[1764063817329,9.67473133,135.86,135.81,57.3631226]
[1764063817515,9.67473133,135.86,135.82,3.26]
[1764063817720,0.67,135.85,135.82,12.93473133]
[1764063819205,0.67,135.85,135.83,7.36214385]
[1764063820032,17.03433832,135.88,135.83,17.03687518]
[1764063820235,16.978864,135.87,135.84,9.67473133]
[1764063820440,0.67,135.87,135.85,3.26]
[1764063820841,0.67,135.86,135.85,3.26]
[1764063821010,0.67,135.86,135.83,17.03687518]
[1764063821011,0.67,135.86,135.82,7.36245312]
[1764063821359,18.54042867,135.89,135.82,7.36245312]
[1764063821360,0.81216157,135.89,135.83,79.02749991]
[1764063821509,0.95432314,135.89,135.84,0.72]
[1764063821714,10.62905447,135.89,135.85,9.67473133]
[1764063821933,0.95432314,135.89,135.86,3.26]
[1764063822110,8.31323143,135.89,135.86,3.26]
[1764063822319,7.50106986,135.89,135.86,3.26]
[1764063822533,0.95432314,135.89,135.86,3.26]
[1764063822845,0.67,135.89,135.86,12.93473133]
[1764063823219,17.03304024,135.91,135.87,7.35997644]
[1764063823415,17.03158707,135.93,135.88,9.67473133]
[1764063823614,0.67,135.92,135.89,12.93473133]
[1764063824018,9.95905447,135.94,135.89,12.93473133]
[1764063824019,17.03101315,135.94,135.89,12.93473133]
[1764063824220,0.67,135.93,135.9,9.67473133]
[1764063824435,0.67,135.93,135.89,62.93473133]
[1764063824911,0.67,135.93,135.89,63.65473133]
[1764063825107,10.34473133,135.93,135.89,3.26]
[1764063825310,10.34473133,135.93,135.89,12.93473133]
[1764063825623,0.28432314,135.94,135.89,12.93473133]
[1764063825833,0.1,135.95,135.93,9.67473133]
[1764063826059,9.77473133,135.95,135.94,3.26]
[1764063826349,26.75359533,135.95,135.94,3.26]
[1764063826532,34.10924078,135.95,135.9,9.67473133]
[1764063826849,10.34473133,135.94,135.91,3.26]
[1764063827351,0.67,135.94,135.91,3.26]
[1764063827558,10.34473133,135.94,135.91,3.26]
[1764063827936,10.34473133,135.93,135.91,3.26]
[1764063828634,17.03103247,135.94,135.91,3.26]
[1764063828950,10.34473133,135.94,135.89,8.07872921]
[1764063829138,0.67,135.93,135.9,3.26]
[1764063829520,0.67,135.93,135.9,20.29277745]
[1764063830357,0.77,135.95,135.91,9.67473133]
[1764063830653,0.77,135.95,135.91,60.39473133]
[1764063831543,0.77,135.95,135.91,67.75205127]
[1764063831743,0.77,135.95,135.91,67.03205127]
[1764063832254,0.77,135.95,135.92,9.67473133]
[1764063832454,0.77,135.95,135.93,3.26]
[1764063832759,0.1,135.95,135.93,3.26]
[1764063833345,0.1,135.95,135.94,9.67473133]
[1764063833547,0.1,135.95,135.93,20.29111325]
[1764063833749,0.1,135.95,135.93,10.61638192]
[1764063834331,0.1,135.95,135.93,20.29111325]
[1764063834527,0.1,135.95,135.93,14.25695627]
[1764063834730,0.1,135.95,135.93,14.92695627]
[1764063834952,0.1,135.95,135.93,64.92695627]
[1764063835866,0.1,135.95,135.94,4.31057435]
[1764063836670,0.1,135.95,135.94,8.02618655]
[1764063836841,0.1,135.95,135.94,10.9967609]
[1764063837026,0.1,135.95,135.94,11.6767609]
[1764063838333,0.1,135.95,135.94,24.12728017]
[1764063838660,0.1,136.01,135.96,50.0]
[1764063838829,0.1,136.01,135.98,3.64057435]
[1764063839155,0.1,136.01,135.97,3.26]
[1764063839156,0.1,136.01,135.99,6.90057435]
[1764063839945,0.1,136.01,136.0,53.64057435]
[1764063840256,0.1,136.01,136.0,50.0]
[1764063840563,0.1,136.01,136.0,59.64873759]
[1764063840761,0.1,136.01,136.0,50.0]
[1764063841068,0.1,136.01,136.0,59.64873759]
[1764063841242,0.1,136.01,136.0,67.00167876]
[1764063842453,0.1,136.01,136.0,50.0]
[1764063842635,0.77,136.01,135.99,9.64873759]
[1764063842834,0.1,136.01,136.0,3.26]
[1764063843050,0.1,136.01,136.0,12.90873759]
[1764063844538,0.1,136.01,136.0,3.26]
[1764063844858,0.1,136.01,136.0,10.61294117]
[1764063845553,0.1,136.01,136.0,3.26]
[1764063845554,0.77,136.01,136.0,3.26]
[1764063846365,10.41873759,136.01,136.0,3.26]
[1764063846861,0.1,136.01,136.0,10.61294117]
[1764063847354,0.1,136.01,136.0,3.26]
[1764063847562,0.77,136.01,136.0,3.26]
[1764063852464,0.77,136.01,135.99,3.26]
[1764063852654,10.41873759,136.01,135.99,3.26]
[1764063852856,9.64873759,136.0,135.96,9.64873759]
[1764063853057,10.31873759,136.0,135.97,3.26]
[1764063853237,9.64873759,136.0,135.97,3.26]
[1764063853442,0.1,136.01,135.98,0.68]
[1764063853658,0.77,136.01,135.99,3.26]
[1764063853853,0.1,136.01,135.99,3.26]
[1764063854037,0.77,136.01,135.99,3.26]
[1764063854242,10.41873759,136.01,135.99,3.26]
[1764063854870,10.31873759,136.0,135.99,3.26]
[1764063855347,0.67,136.0,135.99,3.26]
[1764063856857,17.10113931,136.01,135.99,3.26]
[1764063857167,0.67,136.0,135.99,3.26]
[1764063857677,17.10113931,136.01,135.99,10.6134209]
[1764063857678,0.1,136.01,135.99,10.6134209]
[1764063858570,0.77,136.01,135.99,10.6134209]
[1764063859260,0.1,136.01,135.99,10.6134209]
[1764063859574,0.77,136.01,135.99,10.6134209]
[1764063860468,9.60896759,136.02,135.99,10.6134209]
[1764063860875,9.74873759,136.03,135.99,20.94215849]
[1764063861171,0.1,136.03,135.99,20.94215849]
[1764063861579,0.1,136.03,136.0,10.32873759]
[1764063862089,0.1,136.03,135.99,70.26215849]
[1764063862253,0.1,136.03,136.0,0.68]
[1764063862573,3.73723447,136.03,136.0,8.03271817]
[1764063862873,4.40723447,136.03,136.01,3.26]
[1764063863082,4.31723447,136.02,135.99,7.35324861]
[1764063863291,4.31723447,136.02,136.0,3.26]
[1764063863788,0.1,136.03,136.02,50.0]
[1764063863997,0.1,136.03,136.02,3.63723447]
[1764063864285,0.1,136.03,136.02,0.7]
[1764063864463,3.73723447,136.03,136.02,3.26]
[1764063864655,0.1,136.03,136.02,3.26]
[1764063865181,0.78,136.03,136.02,3.26]
[1764063865577,0.1,136.03,136.02,3.26]
[1764063866382,0.1,136.03,136.02,3.96]
[1764063866593,0.1,136.03,136.02,10.61186002]
[1764063867487,0.1,136.03,136.02,63.63911328]
[1764063870396,0.1,136.03,136.02,61.31186002]
[1764063870572,0.1,136.03,136.02,63.63911328]
[1764063870999,0.1,136.03,136.02,8.05186002]
[1764063871179,0.1,136.03,136.02,12.93911328]
[1764063871383,0.1,136.03,136.02,63.63911328]
[1764063872896,0.68,136.1,136.05,50.0]
[1764063873084,0.68,136.1,136.06,5.58725326]
[1764063873282,0.68,136.13,136.08,50.0]
[1764063873501,0.68,136.13,136.09,3.26]
[1764063873708,2.32725326,136.11,136.09,3.26]
[1764063873998,0.68,136.12,136.09,3.26]
[1764063874205,0.68,136.12,136.09,5.58725326]
[1764063874385,0.68,136.12,136.09,6.28725326]
[1764063874735,2.32725326,136.14,136.1,2.32725326]
[1764063874881,0.68,136.12,136.09,3.96]
[1764063875197,7.34548107,136.14,136.09,13.63501868]
[1764063875583,2.32725326,136.12,136.09,10.60776542]
[1764063875774,0.68,136.13,136.08,7.34851556]
[1764063875975,2.32725326,136.09,136.04,50.0]
[1764063876206,0.68,136.12,136.05,3.26]
[1764063876207,2.32725326,136.08,136.05,3.26]
[1764063876513,2.32725326,136.09,136.05,3.26]
[1764063876680,0.68,136.08,136.05,3.26]
[1764063876883,0.68,136.08,136.06,7.34969866]
[1764063877209,0.68,136.09,136.05,13.63736394]
[1764063877506,0.68,136.08,136.05,13.63736394]
[1764063877711,0.68,136.08,136.05,10.61011068]
[1764063878409,0.68,136.08,136.05,13.63736394]
[1764063878617,0.68,136.09,136.05,13.63736394]
[1764063878788,9.67493462,136.1,136.07,2.32725326]
[1764063878789,0.68,136.1,136.07,2.32725326]
[1764063878988,0.68,136.1,136.08,3.26]
[1764063879490,2.32725326,136.11,136.08,3.26]
[1764063879812,0.68,136.1,136.08,3.26]
[1764063880383,3.00725326,136.1,136.09,3.26]
[1764063880584,0.68,136.1,136.09,3.26]
[1764063880798,3.00725326,136.1,136.09,3.26]
[1764063881314,0.68,136.1,136.09,3.26]
[1764063882104,2.32725326,136.11,136.09,3.26]
[1764063882289,3.00725326,136.11,136.09,3.26]
[1764063882820,0.68,136.1,136.09,3.26]
[1764063883203,3.00725326,136.11,136.09,3.26]
[1764063883825,0.68,136.11,136.09,3.26]
[1764063884018,3.00725326,136.11,136.09,3.26]
[1764063884421,2.32725326,136.11,136.09,3.26]
[1764063884625,0.68,136.11,136.09,3.26]
[1764063885120,0.68,136.11,136.09,10.60799018]
[1764063885640,3.00725326,136.11,136.09,3.0936]
[1764063886089,3.00725326,136.11,136.1,3.26]
[1764063886293,0.68,136.11,136.1,3.26]
[1764063886525,3.00725326,136.11,136.1,3.26]
[1764063888020,0.68,136.11,136.1,3.26]
[1764063889695,3.00725326,136.13,136.1,10.6072757]
[1764063889923,0.68,136.15,136.11,0.7]
[1764063890223,3.00725326,136.15,136.12,3.26]
[1764063890921,2.32725326,136.14,136.11,0.7]
[1764063891121,2.32725326,136.13,136.12,3.26]
[1764063891310,3.00725326,136.14,136.12,3.26]
[1764063891718,141.55730099,136.19,136.12,3.26]
[1764063891917,2.32725326,136.14,136.1,2.32725326]
[1764063892108,3.00725326,136.13,136.1,0.7]
[1764063892435,3.00725326,136.13,136.11,3.26]
[1764063892729,0.68,136.12,136.11,3.26]
[1764063893640,3.00725326,136.12,136.08,9.67564978]
[1764063893938,3.00725326,136.12,136.1,3.26]
[1764063894229,7.34610086,136.13,136.1,3.26]
[1764063894230,2.32725326,136.13,136.1,3.26]
[1764063894436,0.67,136.12,136.1,3.26]
[1764063896119,2.32725326,136.11,136.04,2.32725326]
[1764063896434,8.01647059,136.12,136.04,2.32725326]
[1764063896435,2.32725326,136.09,136.05,3.92]
[1764063896837,3.01725326,136.09,136.06,0.67]
[1764063897340,0.69,136.09,136.06,0.67]
[1764063897538,3.01725326,136.09,136.06,0.67]
[1764063897837,2.32725326,136.08,136.07,3.26]
[1764063898224,3.01725326,136.08,136.03,2.99725326]
[1764063898422,2.32725326,136.07,136.04,3.26]
[1764063898622,2.32725326,136.06,136.04,3.93]
[1764063898825,3.01725326,136.07,136.04,3.93]
[1764063899027,25.71830811,136.09,136.04,3.26]
[1764063899028,3.01725326,136.06,136.04,3.26]
[1764063899237,0.69,136.06,136.04,3.26]
[1764063899440,3.01725326,136.06,136.04,3.26]
[1764063899912,3.01725326,136.05,136.01,2.32725326]
[1764063900116,3.01725326,136.05,136.03,3.26]
[1764063900435,7.34976079,136.06,135.98,50.0]
[1764063900436,3.01725326,136.04,135.98,0.67]
[1764063900647,3.01725326,136.04,135.97,18.38589269]
[1764063900648,2.32725326,136.01,135.97,7.35439256]
[1764063900858,2.32725326,136.0,135.98,3.26]
[1764063901039,2.32725326,135.99,135.97,3.26]
[1764063901242,0.69,136.02,135.97,3.26]
[1764063901440,2.32725326,135.98,135.96,3.26]
[1764063901738,2.32725326,135.97,135.96,3.26]
[1764063901946,2.32725326,135.97,135.93,8.026552]
[1764063902254,2.32725326,135.95,135.94,3.26]
[1764063902422,0.69,135.96,135.93,3.26]
[1764063902758,2.32725326,135.96,135.93,3.26]
[1764063902926,2.32725326,135.96,135.93,3.93]
[1764063903125,3.01725326,135.96,135.93,3.93]
[1764063903629,3.01725326,135.96,135.94,3.26]
[1764063903940,2.32725326,135.95,135.94,3.26]
[1764063904336,3.01725326,135.96,135.94,3.26]
[1764063904523,5.54925403,135.95,135.94,3.26]
[1764063904723,6.23925403,135.95,135.92,0.2]
[1764063904925,0.69,135.95,135.93,3.26]
[1764063905126,0.69,135.95,135.92,8.22714804]
[1764063905352,6.23925403,135.95,135.93,3.26]
[1764063905735,0.69,135.98,135.94,0.67]
[1764063905939,0.69,135.98,135.94,6.21925403]
[1764063906150,5.54925403,135.96,135.94,3.26]
[1764063906336,0.69,135.98,135.94,3.26]
[1764063906525,6.23925403,135.98,135.94,3.26]
[1764063906726,5.54925403,135.98,135.95,0.67]
[1764063906927,5.54925403,135.99,135.95,0.67]
[1764063907652,6.23925403,135.99,135.95,0.67]
[1764063908049,6.23925403,135.99,135.95,8.02511216]
[1764063908253,6.23925403,135.99,135.94,8.80925403]
[1764063908254,0.69,135.98,135.92,0.2]
[1764063908439,5.54925403,135.93,135.92,0.2]
[1764063908963,5.54925403,135.96,135.92,0.87]
[1764063909149,5.54925403,135.96,135.93,3.26]
[1764063909346,5.54925403,135.94,135.92,0.87]
[1764063909544,5.54925403,135.94,135.92,0.2]
[1764063909738,5.54925403,135.94,135.93,3.26]
[1764063909954,5.54925403,135.94,135.92,3.46]
[1764063910155,6.23925403,135.94,135.92,3.46]
[1764063910353,7.63959051,135.96,135.92,3.46]
[1764063910560,5.54925403,135.95,135.92,4.13]
[1764063910762,5.54925403,135.95,135.92,11.48710808]
[1764063911074,5.54925403,135.95,135.92,4.13]
[1764063911261,8.04514484,135.96,135.92,0.2]
[1764063911262,5.54925403,135.93,135.92,0.2]
[1764063911653,6.23925403,135.93,135.92,0.2]
[1764063911851,22.54811803,135.93,135.92,0.2]
[1764063912179,29.90484575,135.93,135.92,0.2]
[1764063913177,16.998864,135.96,135.92,0.87]
[1764063913474,5.54925403,135.94,135.92,0.2]
[1764063913651,0.69,135.95,135.92,0.2]
[1764063913977,5.54925403,135.94,135.92,0.2]
[1764063915473,6.23925403,135.95,135.92,0.2]
[1764063915679,6.23925403,135.95,135.92,7.55726106]
[1764063915848,6.23925403,135.95,135.92,0.2]
[1764063916459,18.6703243,135.98,135.93,0.67]
[1764063916460,0.69,135.98,135.93,0.67]
[1764063916771,5.54925403,135.97,135.93,0.67]
[1764063916971,0.69,135.97,135.92,3.46]
[1764063917176,5.54925403,135.95,135.92,3.46]
[1764063917652,6.23925403,135.95,135.92,3.46]
[1764063918349,5.54925403,135.93,135.92,0.2]
[1764063918975,6.23925403,135.94,135.92,0.2]
[1764063919471,12.90511887,135.95,135.92,0.2]
[1764063919674,6.23925403,135.94,135.92,0.2]
[1764063921767,13.59555675,135.94,135.92,0.2]
[1764063923371,0.72,135.96,135.93,0.71]
[1764063923576,6.26925403,135.96,135.93,0.71]
[1764063925751,13.62443924,135.96,135.92,8.26711026]
[1764063925958,5.54925403,135.95,135.92,8.26711026]
[1764063926576,2.33077859,135.95,135.92,8.26711026]
[1764063927057,3.05077859,135.94,135.92,7.55711026]
[1764063927256,3.05077859,135.94,135.92,0.2]
[1764063927257,2.33077859,135.93,135.92,0.2]
[1764063927474,2.33077859,135.93,135.92,3.46]
[1764063927681,3.05077859,135.94,135.92,3.46]
[1764063928681,3.64252691,135.93,135.92,3.46]
[1764063929056,8.07672772,135.93,135.92,0.2]
[1764063929274,12.14573934,135.93,135.92,0.2]
[1764063930283,16.308864,135.93,135.92,0.2]
[1764063930472,3.64252691,135.93,135.92,0.2]
[1764063930674,17.028864,135.94,135.92,0.2]
[1764063930867,3.64252691,135.93,135.92,0.2]
[1764063931070,4.36252691,135.93,135.92,0.2]
[1764063931571,0.72,135.93,135.92,0.2]
[1764063932983,4.36252691,135.93,135.92,0.2]
[1764063937189,0.72,135.93,135.92,0.2]
[1764063937375,10.99873164,135.94,135.92,0.2]
[1764063937574,11.71873164,135.94,135.92,0.2]
[1764063937767,10.99873164,135.94,135.92,0.2]
[1764063937971,4.36252691,135.93,135.92,0.2]
[1764063938293,0.72,135.93,135.92,0.2]
[1764063940192,4.36252691,135.93,135.92,0.2]
[1764063941190,28.45460334,135.93,135.92,0.2]
[1764063947207,24.38559172,135.93,135.92,0.2]
[1764063947386,28.45460334,135.93,135.92,0.2]
[1764063948897,28.31244177,135.93,135.92,0.2]
[1764063949494,24.66991486,135.93,135.92,0.2]
[1764063949704,28.31244177,135.93,135.92,0.2]
[1764063951686,28.45460334,135.93,135.92,0.2]
[1764063953788,28.31244177,135.93,135.92,0.2]
[1764063955481,27.59244177,135.93,135.92,0.2]
[1764063956292,27.73460334,135.93,135.92,0.2]
[1764063957608,28.42460334,135.93,135.92,0.2]
[1764063960411,16.308864,135.93,135.92,0.2]
[1764063960619,27.30811863,135.93,135.92,0.2]
[1764063960909,27.73460334,135.93,135.92,0.2]
[1764063961211,28.42460334,135.93,135.92,0.2]
[1764063962823,37.23454826,135.93,135.92,0.2]
[1764063963022,37.23454826,135.93,135.85,0.88]
[1764063963023,9.23642963,135.92,135.85,0.88]
[1764063963331,9.23642963,135.92,135.85,0.2]
[1764063963332,3.64252691,135.87,135.85,0.2]
[1764063963803,3.64252691,135.87,135.85,0.88]
[1764063964004,3.64252691,135.86,135.85,0.2]
[1764063964224,4.33252691,135.86,135.85,0.2]
[1764063964391,11.00304509,135.86,135.85,0.2]
[1764063967326,11.4295298,135.86,135.85,0.2]
[1764063968031,20.92947472,135.86,135.85,0.2]
[1764063971824,7.36051818,135.86,135.85,0.2]
[1764063972001,11.4295298,135.86,135.85,0.2]
[1764063972200,11.14520666,135.86,135.85,0.2]
[1764063972399,0.14216157,135.86,135.85,0.2]
[1764063972621,27.7383938,135.86,135.85,0.2]
[1764063972807,20.37787562,135.86,135.85,0.2]
[1764063973004,27.7383938,135.86,135.85,0.2]
[1764063973927,28.4283938,135.86,135.85,0.2]
[1764063974129,145.19833872,135.86,135.85,0.2]
[1764063979338,132.01190909,135.86,135.85,0.2]
[1764063979902,115.70304509,135.86,135.85,0.2]
[1764063980304,116.1295298,135.86,135.85,0.2]
[1764063981019,108.76901162,135.86,135.85,0.2]
[1764063981217,23.66908215,135.87,135.85,0.88]
[1764063981218,19.95139091,135.87,135.85,0.88]
[1764063981730,20.23571405,135.87,135.86,0.68]
[1764063982026,27.73791262,135.87,135.86,0.68]
[1764063982537,20.37787562,135.87,135.86,0.68]
[1764063982718,16.16796377,135.91,135.86,0.68]
[1764063982907,3.64252691,135.9,135.86,0.68]
[1764063983106,3.64252691,135.89,135.86,0.68]
[1764063983330,3.64252691,135.88,135.86,0.68]
[1764063983725,3.64252691,135.89,135.86,0.68]
[1764063984226,3.64252691,135.88,135.86,0.68]
[1764063985121,3.64252691,135.87,135.85,0.2]
[1764063985321,3.64252691,135.86,135.85,0.86]
[1764063985919,7.35944981,135.88,135.85,0.86]
[1764063985920,3.64252691,135.87,135.85,0.86]
[1764063986145,3.64252691,135.87,135.86,0.66]
[1764063986852,11.00152803,135.89,135.86,0.66]
[1764063987967,3.64252691,135.88,135.86,0.66]
[1764063989040,11.0020762,135.88,135.86,0.66]
[1764063989822,3.64252691,135.88,135.86,0.66]
[1764063990452,12.87895654,135.87,135.85,0.2]
[1764063990672,0.42648471,135.86,135.85,0.2]
[1764063990964,2.76058722,135.86,135.85,0.2]
[1764063992053,19.63105032,135.86,135.85,0.2]
[1764063993763,35.93991432,135.86,135.85,0.2]
[1764063993957,19.63105032,135.86,135.85,0.2]
[1764063994155,22.89105032,135.86,135.85,0.2]
[1764063997935,16.308864,135.83,135.81,0.2]
[1764063998238,2.76058722,135.82,135.81,0.2]
[1764063998437,2.76058722,135.82,135.81,0.86]
[1764063999546,10.12327312,135.82,135.81,0.86]
[1764063999962,16.308864,135.83,135.81,0.86]
[1764064000165,18.64296651,135.83,135.82,0.66]
[1764064000460,9.69624636,135.83,135.82,0.66]
[1764064001751,0.42648471,135.82,135.81,0.2]
[1764064001941,3.46058722,135.82,135.81,0.2]
[1764064002746,2.76058722,135.82,135.81,0.2]
[1764064003650,19.63321804,135.82,135.81,0.2]
[1764064004736,22.89321804,135.82,135.81,0.2]
[1764064005256,25.54529363,135.79,135.78,0.2]
[1764064005457,27.87939614,135.79,135.78,0.2]
[1764064005642,35.24370868,135.79,135.78,0.2]
[1764064011158,32.90960617,135.79,135.78,0.2]
[1764064012163,33.60960617,135.79,135.78,0.2]
[1764064012460,35.94370868,135.79,135.78,1e-08]
[1764064012637,140.64370868,135.79,135.78,1e-08]
[1764064013163,140.64370868,135.79,135.71,0.2]
[1764064013164,0.42648471,135.74,135.72,0.68]
[1764064013541,2.76058722,135.74,135.72,0.68]
[1764064014158,26.43675447,135.74,135.72,0.68]
[1764064014563,9.70140576,135.74,135.72,0.68]
[1764064014873,26.29387208,135.75,135.72,0.68]
[1764064015271,2.33410251,135.74,135.72,0.68]
[1764064015841,2.33410251,135.73,135.72,0.68]
[1764064016041,9.70167047,135.73,135.72,0.68]
[1764064017654,9.70132614,135.74,135.72,0.68]
[1764064019754,2.33410251,135.75,135.72,0.68]
[1764064020058,2.33410251,135.76,135.72,8.04792734]
[1764064020556,2.33410251,135.76,135.73,0.66]
[1764064021141,7.36485491,135.78,135.73,0.66]
[1764064021142,2.33410251,135.75,135.73,0.66]
[1764064021361,2.33410251,135.74,135.73,0.66]
[1764064022775,9.7011277,135.74,135.73,0.66]
[1764064022977,9.7011277,135.74,135.71,0.2]
[1764064023279,2.33410251,135.72,135.71,0.86]
[1764064024972,0.14216157,135.74,135.71,8.22860288]
[1764064025155,18.78512808,135.74,135.72,0.66]
[1764064025357,11.29910156,135.77,135.72,0.66]
[1764064025671,2.33410251,135.76,135.72,0.66]
[1764064025875,2.33410251,135.77,135.73,2.33410251]
[1764064026091,119.63296812,135.79,135.74,2.33410251]
[1764064026269,2.33410251,135.78,135.74,2.33410251]
[1764064026595,2.33410251,135.78,135.75,0.66]
[1764064026952,9.69949987,135.77,135.75,0.66]
[1764064027674,2.33410251,135.77,135.75,0.66]
[1764064028466,7.36504463,135.78,135.75,0.66]
[1764064029166,7.79239116,135.77,135.75,0.66]
[1764064029357,7.79239116,135.77,135.74,0.66]
[1764064030458,0.42648471,135.77,135.74,0.66]
[1764064030659,2.76058722,135.77,135.74,0.66]
[1764064031452,10.12601734,135.77,135.74,0.66]
[1764064032784,7.36543012,135.77,135.74,8.02694582]
[1764064032970,9.69916185,135.78,135.74,8.02694582]
[1764064033297,9.69916185,135.78,135.75,0.66]
[1764064036369,2.33410251,135.76,135.73,0.66]
[1764064036577,2.33410251,135.75,135.74,0.66]
[1764064037160,2.33410251,135.76,135.74,0.66]
[1764064037979,9.70019496,135.76,135.74,0.66]
[1764064038176,2.33410251,135.75,135.74,0.66]
[1764064038981,7.36609245,135.76,135.74,0.66]
[1764064039287,2.33410251,135.75,135.74,0.66]
[1764064039487,2.33410251,135.76,135.74,0.66]
[1764064039986,9.70013262,135.76,135.74,0.66]
[1764064040687,2.33410251,135.76,135.74,0.66]
[1764064042186,121.008864,135.79,135.74,8.02701832]
[1764064042363,123.34296651,135.79,135.74,10.36112083]
[1764064042564,123.34296651,135.79,135.75,0.66]
[1764064042778,107.03410251,135.79,135.75,0.66]
[1764064043201,2.33410251,135.79,135.75,0.66]
[1764064043865,9.69851314,135.79,135.75,0.66]
[1764064044065,9.69851314,135.79,135.75,8.02612104]
[1764064044262,9.69851314,135.79,135.76,0.67]
[1764064045308,17.26318714,135.81,135.76,0.67]
[1764064045309,7.36394924,135.8,135.76,0.67]
[1764064045511,2.33410251,135.8,135.76,6.26410251]
[1764064045682,16.308864,135.81,135.76,6.26410251]
[1764064045862,2.33410251,135.82,135.77,3.00410251]
[1764064046366,2.33410251,135.82,135.78,8.03485491]
[1764064046880,2.33410251,135.82,135.79,0.67]
[1764064047187,2.33410251,135.81,135.79,0.67]
[1764064048565,7.36273797,135.82,135.79,8.03428001]
[1764064048566,2.33410251,135.82,135.79,8.03428001]
[1764064048785,9.98079565,135.83,135.79,8.03428001]
[1764064048986,9.98079565,135.83,135.8,0.67]
[1764064049789,2.33410251,135.83,135.8,0.67]
[1764064050087,16.308864,135.84,135.8,3.93]
[1764064050290,18.64296651,135.84,135.8,3.93]
[1764064050470,18.64296651,135.84,135.81,8.03309011]
[1764064050873,2.33410251,135.83,135.8,3.26]
[1764064051073,2.33410251,135.83,135.81,0.67]
[1764064051809,2.33410251,135.82,135.8,3.26]
[1764064052010,2.33410251,135.81,135.79,3.93]
[1764064052215,16.308864,135.84,135.79,3.93]
[1764064052383,16.308864,135.84,135.8,0.67]
[1764064052567,19.95653722,135.84,135.8,8.03326897]
[1764064052899,3.64767322,135.83,135.8,0.67]
[1764064053202,3.64767322,135.83,135.8,3.26]
[1764064053371,3.64767322,135.83,135.81,0.67]
[1764064054179,3.64767322,135.82,135.8,3.93]
[1764064054494,3.64767322,135.81,135.79,3.26]
[1764064054686,16.308864,135.84,135.8,4.31767322]
[1764064054912,19.95653722,135.84,135.8,0.67]
[1764064055066,40.07056894,135.88,135.81,3.64767322]
[1764064055067,22.33128967,135.88,135.81,3.64767322]
[1764064055273,3.64767322,135.86,135.81,3.64767322]
[1764064055473,3.64767322,135.86,135.82,0.67]
[1764064055675,2.14767322,135.86,135.83,3.26]
[1764064055887,18.45653722,135.86,135.83,3.26]